bitfinex-derivatives/quotes_SOLF0:USTF0_20250212
["timestamp","ask_amount","ask_price","bid_price","bid_amount"]
[1739346370249,0.03800188,195.52,195.48,0.03269049]
[1739346370453,9.01873644,195.51,195.48,0.03269049]
[1739346371758,5.1158,195.5,195.48,0.03269049]
[1739346372360,0.03800188,195.52,195.48,0.03269049]
[1739346372654,0.03800188,195.52,195.49,9.01873644]
[1739346373649,0.03800188,195.52,195.51,5.1155]
[1739346373850,0.03800188,195.52,195.51,14.13423644]
[1739346379163,0.03800188,195.52,195.5,5.1158]
[1739346379662,0.03800188,195.52,195.48,5.14899049]
[1739346380559,0.03800188,195.52,195.48,0.03269049]
[1739346380759,0.03800188,195.52,195.49,5.116]
[1739346380959,0.03800188,195.52,195.49,9.01873644]
[1739346381865,0.03800188,195.52,195.51,5.1155]
[1739346382464,0.03800188,195.52,195.51,14.13423644]
[1739346393969,0.03800188,195.52,195.51,9.01873644]
[1739346394165,0.03800188,195.52,195.48,9.05142693]
[1739346395770,0.03800188,195.52,195.51,5.1155]
[1739346398573,0.03800188,195.52,195.5,9.01873644]
[1739346398770,0.03800188,195.52,195.5,14.13453644]
[1739346398967,0.03800188,195.52,195.48,0.03269049]
[1739346400174,5.15340188,195.52,195.48,5.14899049]
[1739346401475,0.03800188,195.52,195.48,0.03269049]
[1739346401774,5.1156,195.51,195.48,0.03269049]
[1739346402271,1.59590188,195.52,195.48,0.03269049]
[1739346402473,9.01873644,195.49,195.44,14.13583644]
[1739346403075,9.01873644,195.49,195.44,5.1171]
[1739346403274,9.01873644,195.49,195.44,9.01873644]
[1739346404779,14.13493644,195.49,195.44,14.13583644]
[1739346405177,9.01873644,195.49,195.44,14.13583644]
[1739346405476,5.1164,195.48,195.44,9.01873644]
[1739346405674,12.02263644,195.51,195.44,9.01873644]
[1739346405875,0.03847099,195.48,195.46,5.1168]
[1739346408582,0.03847099,195.48,195.46,14.13553644]
[1739346409284,0.03847099,195.48,195.46,9.01873644]
[1739346409487,0.03847099,195.48,195.47,5.1166]
[1739346415585,0.03847099,195.48,195.46,14.13553644]
[1739346417688,0.03847099,195.48,195.46,9.01873644]
[1739346417987,0.03847099,195.48,195.47,5.1166]
[1739346422593,0.03847099,195.48,195.46,14.13553644]
[1739346424991,0.03847099,195.48,195.46,5.1168]
[1739346427300,0.03847099,195.48,195.45,5.1171]
[1739346427498,0.03847099,195.48,195.44,9.01873644]
[1739346427998,0.03847099,195.48,195.47,5.1166]
[1739346436810,7.099e-05,195.48,195.47,5.1166]
[1739346445716,1.6085,195.58,195.54,5.1145]
[1739346445919,1.6085,195.58,195.54,9.01873644]
[1739346446819,1.6426881,195.58,195.55,5.1142]
[1739346450717,1.6426881,195.58,195.54,9.05572813]
[1739346450924,9.01873644,195.57,195.54,0.03699169]
[1739346451423,14.13323644,195.55,195.54,0.03699169]
[1739346451823,9.01873644,195.53,195.46,9.01873644]
[1739346452023,9.01873644,195.51,195.44,65.41677966]
[1739346452226,9.01873644,195.49,195.44,65.41677966]
[1739346452423,9.01873644,195.49,195.44,56.39804322]
[1739346452724,9.01873644,195.49,195.45,5.1171]
[1739346453024,0.03833004,195.48,195.45,5.1171]
[1739346453420,0.03833004,195.48,195.44,56.39804322]
[1739346453724,9.01873644,195.47,195.44,56.39804322]
[1739346454724,9.01873644,195.47,195.4,9.01873644]
[1739346455224,9.01873644,195.47,195.42,9.01873644]
[1739346455824,0.03833004,195.48,195.42,9.01873644]
[1739346456825,0.03833004,195.48,195.44,5.1174]
[1739346459435,0.03833004,195.48,195.44,14.13613644]
[1739346462032,0.03833004,195.48,195.45,5.1171]
[1739346471545,0.03833004,195.48,195.44,9.01873644]
[1739346471842,0.03833004,195.48,195.44,14.13603644]
[1739346472244,0.03833004,195.48,195.45,5.1171]
[1739346474445,0.03833004,195.48,195.46,5.1168]
[1739346474644,0.03833004,195.48,195.44,9.01873644]
[1739346475735,0.03833004,195.48,195.42,9.01873644]
[1739346475941,5.15473004,195.48,195.43,5.1174]
[1739346476345,0.03833004,195.48,195.42,9.01873644]
[1739346476541,0.03833004,195.48,195.46,5.1168]
[1739346477742,0.03833004,195.48,195.45,5.117]
[1739346478849,0.03833004,195.48,195.42,9.01873644]
[1739346479040,5.1166,195.47,195.43,5.1176]
[1739346480445,5.15463004,195.48,195.44,5.1173]
[1739346482445,0.03833004,195.48,195.42,9.01873644]
[1739346482643,5.1168,195.46,195.42,14.13643644]
[1739346482840,9.01873644,195.47,195.4,9.01873644]
[1739346483047,14.13603644,195.45,195.4,5.1184]
[1739346483241,9.05186421,195.45,195.4,5.1184]
[1739346483548,9.05186421,195.45,195.38,9.01873644]
[1739346484145,5.1176,195.43,195.39,5.1186]
[1739346484450,9.05186421,195.45,195.39,5.1186]
[1739346485550,9.05186421,195.45,195.38,9.01873644]
[1739346485752,5.1174,195.44,195.4,5.1184]
[1739346485942,9.05186421,195.45,195.4,5.1184]
[1739346486250,9.05186421,195.45,195.38,9.01873644]
[1739346486553,9.05186421,195.45,195.39,5.1186]
[1739346486845,5.1176,195.43,195.39,5.1186]
[1739346487052,9.01873644,195.43,195.38,14.13763644]
[1739346488053,9.01873644,195.43,195.38,9.01873644]
[1739346488346,9.01873644,195.43,195.31,57.16653402]
[1739346488347,9.01873644,195.43,195.36,9.01873644]
[1739346488652,5.1182,195.41,195.36,14.13813644]
[1739346488951,5.153429,195.41,195.36,14.13813644]
[1739346489353,0.035229,195.41,195.36,14.13813644]
[1739346489553,5.1185,195.4,195.36,9.01873644]
[1739346490656,5.1185,195.4,195.35,5.1197]
[1739346491244,5.1185,195.4,195.36,5.1194]
[1739346492552,9.05396544,195.41,195.36,5.1194]
[1739346492846,9.01873644,195.39,195.34,5.1199]
[1739346493151,14.13763644,195.39,195.32,9.01873644]
[1739346494147,14.13763644,195.39,195.34,5.12]
[1739346494353,14.13763644,195.39,195.32,9.01873644]
[1739346494952,14.13763644,195.39,195.34,5.12]
[1739346495955,9.01873644,195.39,195.32,9.01873644]
[1739346496152,5.1191,195.38,195.33,5.1202]
[1739346497156,5.1191,195.38,195.32,9.01873644]
[1739346497350,5.1191,195.38,195.34,5.1198]
[1739346497551,0.03651908,195.37,195.34,5.1198]
[1739346501752,0.03651908,195.37,195.32,9.01873644]
[1739346501948,0.03651908,195.37,195.36,5.1195]
[1739346502154,0.03651908,195.37,195.36,14.13823644]
[1739346502652,0.03651908,195.37,195.32,9.01873644]
[1739346502957,9.05525552,195.37,195.32,9.01873644]
[1739346503448,5.1197,195.36,195.32,14.13903644]
[1739346504252,5.1197,195.36,195.32,9.01873644]
[1739346504458,14.13863644,195.35,195.31,5.1207]
[1739346505457,0.03651908,195.37,195.36,5.1195]
[1739346505657,9.01873644,195.44,195.36,9.01873644]
[1739346505956,0.03338706,195.38,195.36,9.01873644]
[1739346506159,0.03614959,195.39,195.38,5.1187]
[1739346506359,14.13613644,195.44,195.38,5.1187]
[1739346506563,0.03685962,195.4,195.39,5.1187]
[1739346507264,3.0118,195.49,195.44,5.1173]
[1739346507457,1.5199,195.49,195.44,5.1173]
[1739346507858,1.5199,195.49,195.43,9.01873644]
[1739346508061,20.89360644,195.5,195.43,9.01873644]
[1739346508459,0.03289065,195.48,195.45,0.03574328]
[1739346509762,0.03289065,195.48,195.45,5.15254328]
[1739346510964,9.05162709,195.48,195.45,0.03574328]
[1739346512763,9.05162709,195.48,195.45,5.15284328]
[1739346512967,14.16802709,195.48,195.45,0.03574328]
[1739346513564,9.01873644,195.46,195.45,0.03574328]
[1739346514067,9.01873644,195.46,195.36,1.6103]
[1739346514264,9.01873644,195.41,195.35,64.80604163]
[1739346514968,9.01873644,195.41,195.38,5.1189]
[1739346515166,0.03507719,195.4,195.38,5.1189]
[1739346515669,0.03507719,195.4,195.35,64.80604163]
[1739346515967,0.03507719,195.4,195.39,14.13743644]
[1739346516167,7.719e-05,195.4,195.39,14.13743644]
[1739346518159,7.719e-05,195.4,195.39,5.1187]
[1739346519466,7.719e-05,195.4,195.38,0.03403926]
[1739346522164,5.11847719,195.4,195.38,0.03403926]
[1739346522469,9.01873644,195.39,195.29,10.52223644]
[1739346522663,9.01873644,195.36,195.29,10.52223644]
[1739346523368,9.01873644,195.36,195.31,5.1205]
[1739346523568,0.03759959,195.34,195.29,1.5035]
[1739346524062,0.03759959,195.34,195.31,5.1205]
[1739346525869,0.03759959,195.34,195.27,14.15835208]
[1739346526771,0.03759959,195.34,195.29,5.1213]
[1739346526969,0.03759959,195.34,195.27,14.15835208]
[1739346527469,0.03759959,195.34,195.32,5.1203]
[1739346527670,0.03759959,195.34,195.27,14.15835208]
[1739346528270,0.03759959,195.34,195.3,5.1209]
[1739346529071,0.03759959,195.34,195.31,5.1208]
[1739346530174,0.03759959,195.34,195.3,5.121]
[1739346530568,0.03759959,195.34,195.27,14.15835208]
[1739346530777,5.1203,195.33,195.25,1.4792]
[1739346531071,0.03759959,195.34,195.25,1.4792]
[1739346531375,19.27865208,195.33,195.27,5.1217]
[1739346531674,19.27865208,195.33,195.21,14.15835208]
[1739346531876,5.15930259,195.32,195.26,5.1219]
[1739346532377,5.121,195.31,195.21,14.15835208]
[1739346532574,14.15835208,195.33,195.21,14.15835208]
[1739346532873,0.03457103,195.28,195.19,1.5781]
[1739346533470,5.15617103,195.28,195.19,1.5781]
[1739346533875,0.03457103,195.28,195.19,1.5781]
[1739346534977,0.03457103,195.28,195.26,5.1219]
[1739346535978,0.03457103,195.28,195.27,5.1218]
[1739346537270,0.03457103,195.28,195.23,5.1228]
[1739346537468,0.03457103,195.28,195.19,1.5781]
[1739346537774,0.03457103,195.28,195.21,5.1234]
[1739346537979,0.03457103,195.28,195.18,14.15835208]
[1739346538472,0.03457103,195.28,195.21,14.15835208]
[1739346538677,3.0001,195.31,195.21,14.15835208]
[1739346538875,0.03894062,195.26,195.21,14.15835208]
[1739346539978,0.03894062,195.26,195.25,5.1223]
[1739346541381,0.03894062,195.26,195.24,5.1226]
[1739346541681,0.03894062,195.26,195.21,14.15835208]
[1739346541981,0.03894062,195.26,195.22,5.123]
[1739346542182,0.03894062,195.26,195.21,14.15835208]
[1739346543782,0.03894062,195.26,195.25,5.1223]
[1739346544484,0.03894062,195.26,195.22,5.123]
[1739346544686,0.03894062,195.26,195.21,14.15835208]
[1739346544884,0.03894062,195.26,195.18,14.15835208]
[1739346545182,14.15835208,195.3,195.18,14.15835208]
[1739346545372,0.03482422,195.24,195.18,14.15835208]
[1739346546479,0.03482422,195.24,195.22,5.1229]
[1739346547284,0.03482422,195.24,195.18,14.15835208]
[1739346547882,0.03482422,195.24,195.21,5.1233]
[1739346548079,0.03482422,195.24,195.18,14.15835208]
[1739346549279,0.03482422,195.24,195.23,5.1229]
[1739346550576,0.03482422,195.24,195.19,1.6128]
[1739346550778,0.03482422,195.24,195.19,5.1239]
[1739346551185,5.1234,195.21,195.16,5.1247]
[1739346551479,5.1234,195.21,195.12,15.77115208]
[1739346551682,0.03380231,195.2,195.19,5.1239]
[1739346554083,0.03380231,195.2,195.17,5.1243]
[1739346554385,0.03380231,195.2,195.12,15.77115208]
[1739346555778,0.03380231,195.2,195.19,5.1239]
[1739346558187,0.03380231,195.2,195.12,15.77115208]
[1739346558484,0.03380231,195.2,195.12,1.6128]
[1739346558782,0.03380231,195.2,195.15,5.1247]
[1739346558988,5.15760231,195.2,195.15,5.1247]
[1739346559781,5.15760231,195.2,195.16,5.1246]
[1739346560078,0.03380231,195.2,195.09,14.15835208]
[1739346560588,0.03380231,195.2,195.12,5.1257]
[1739346560888,0.03380231,195.2,195.09,14.15835208]
[1739346561782,5.15750231,195.2,195.09,14.15835208]
[1739346562085,5.15750231,195.2,195.16,5.1247]
[1739346562980,0.03380231,195.2,195.16,5.1247]
[1739346563690,0.03380231,195.2,195.09,14.15835208]
[1739346564189,0.03380231,195.2,195.19,5.1239]
[1739346564390,5.123,195.23,195.12,14.15835208]
[1739346564592,0.03379411,195.21,195.12,14.15835208]
[1739346565893,0.03379411,195.21,195.13,1.5607]
[1739346566193,0.03379411,195.21,195.13,3.1648]
[1739346566891,0.03379411,195.21,195.2,5.1237]
[1739346570592,9.411e-05,195.21,195.2,5.1237]
[1739346572392,9.411e-05,195.21,195.2,6.6846]
[1739346573095,1.477,195.31,195.28,5.1213]
[1739346573295,1.6069,195.32,195.28,5.1213]
[1739346573493,14.15835208,195.36,195.28,5.1213]
[1739346573694,15.68795208,195.36,195.28,5.1213]
[1739346574200,5.12,195.34,195.29,5.1213]
[1739346574400,5.15624792,195.34,195.3,0.03480299]
[1739346575105,0.03624792,195.34,195.3,0.03480299]
[1739346576306,5.15634792,195.34,195.3,0.03480299]
[1739346576706,0.03624792,195.34,195.3,0.03480299]
[1739346578601,5.15644792,195.34,195.3,0.03480299]
[1739346579408,5.1203,195.33,195.3,0.03480299]
[1739346579609,0.03624792,195.34,195.3,0.03480299]
[1739346580207,5.15644792,195.34,195.3,0.03480299]
[1739346581106,5.1203,195.33,195.3,0.03480299]
[1739346581307,0.03624792,195.34,195.3,0.03480299]
[1739346582210,5.15624792,195.34,195.3,0.03480299]
[1739346582411,0.03624792,195.34,195.3,0.03480299]
[1739346582611,14.15835208,195.33,195.3,0.03480299]
[1739346582811,5.1205,195.32,195.3,0.03480299]
[1739346583810,14.15835208,195.33,195.3,0.03480299]
[1739346584010,19.27865208,195.33,195.3,0.03480299]
[1739346585209,5.1206,195.32,195.3,0.03480299]
[1739346585511,14.15835208,195.33,195.3,0.03480299]
[1739346585704,14.1870972,195.31,195.3,0.03480299]
[1739346586508,9.0662972,195.31,195.3,0.03480299]
[1739346587717,5.1215,195.29,195.23,5.1228]
[1739346588007,9.0662972,195.28,195.2,12.1993972]
[1739346588910,9.0994477,195.26,195.24,5.1225]
[1739346589813,9.0994477,195.26,195.2,12.1993972]
[1739346589814,9.0994477,195.26,195.25,5.1223]
[1739346590414,0.0331505,195.26,195.25,5.1223]
[1739346596119,0.0331505,195.26,195.23,5.1228]
[1739346600520,9.0994477,195.26,195.2,10.6271972]
[1739346601119,9.0994477,195.26,195.22,5.123]
[1739346601421,9.0994477,195.26,195.2,9.0662972]
[1739346601617,9.0662972,195.24,195.18,9.0662972]
[1739346601923,9.0662972,195.24,195.16,9.0662972]
[1739346602124,0.03850745,195.23,195.16,9.0662972]
[1739346602319,9.0662972,195.22,195.19,5.1239]
[1739346602521,9.0662972,195.22,195.16,9.0662972]
[1739346603324,9.0662972,195.22,195.17,5.1242]
[1739346603626,9.0662972,195.22,195.16,9.0662972]
[1739346604821,0.03850745,195.23,195.19,5.1238]
[1739346606425,9.0662972,195.22,195.16,9.0662972]
[1739346606626,9.0662972,195.22,195.16,14.1907972]
[1739346606823,9.0662972,195.22,195.14,9.0662972]
[1739346607026,14.1899972,195.2,195.14,9.0662972]
[1739346607329,9.0662972,195.2,195.14,9.0662972]
[1739346607523,0.03895266,195.19,195.14,9.0662972]
[1739346607722,5.1246,195.17,195.14,9.0662972]
[1739346608630,5.1242,195.18,195.14,9.0662972]
[1739346608831,5.1242,195.18,195.14,14.1914972]
[1739346609027,0.03895266,195.19,195.14,9.0662972]
[1739346609331,0.03895266,195.19,195.17,5.1242]
[1739346610328,0.03895266,195.19,195.16,9.0662972]
[1739346610537,5.16305266,195.19,195.12,9.0662972]
[1739346610830,9.0662972,195.18,195.12,9.0662972]
[1739346611426,14.1905972,195.18,195.14,5.1252]
[1739346611832,9.0662972,195.18,195.12,9.0662972]
[1739346612032,9.0662972,195.16,195.12,5.1256]
[1739346613535,14.1909972,195.16,195.12,5.1256]
[1739346614535,9.0662972,195.16,195.12,5.1256]
[1739346615236,9.0662972,195.16,195.1,5.126]
[1739346615635,0.03474115,195.15,195.1,5.1263]
[1739346615838,0.03474115,195.15,195.08,9.0662972]
[1739346616236,14.1915972,195.14,195.09,5.1265]
[1739346617032,5.1256,195.13,195.09,5.1265]
[1739346617234,9.0662972,195.1,195.04,14.1938972]
[1739346617633,0.0332938,195.09,195.04,9.0662972]
[1739346617840,0.0332938,195.09,195.05,5.1276]
[1739346618337,0.0332938,195.09,195.04,9.0662972]
[1739346619032,0.0332938,195.09,195.07,5.127]
[1739346619733,0.0332938,195.09,195.04,9.0662972]
[1739346619939,0.0332938,195.09,195.08,14.1930972]
[1739346621439,0.0332938,195.09,195.06,5.1271]
[1739346622034,0.0332938,195.09,195.04,9.0662972]
[1739346622234,9.0662972,195.08,195.02,9.0662972]
[1739346622636,0.03901495,195.07,195.04,5.1276]
[1739346623743,0.03901495,195.07,195.02,9.0662972]
[1739346624042,0.03901495,195.07,195.04,9.0662972]
[1739346624443,0.03901495,195.07,195.06,5.1273]
[1739346624834,0.03901495,195.07,195.06,14.1935972]
[1739346625444,1.495e-05,195.07,195.06,14.1935972]
[1739346626937,9.0662972,195.16,195.06,9.0662972]
[1739346627142,23.74013,195.17,195.13,9.0662972]
[1739346627743,23.74013,195.17,195.1,14.18249815]
[1739346628244,0.03352759,195.15,195.14,5.1251]
[1739346628943,0.03352759,195.15,195.12,5.15822261]
[1739346630548,0.03352759,195.15,195.12,0.03262261]
[1739346632446,0.03352759,195.15,195.12,5.15832261]
[1739346632647,0.03352759,195.15,195.12,0.03262261]
[1739346634148,5.1252,195.14,195.12,0.03262261]
[1739346634352,0.03352759,195.15,195.12,0.03262261]
[1739346636049,5.15852759,195.15,195.12,0.03262261]
[1739346637345,0.03352759,195.15,195.12,0.03262261]
[1739346638949,0.03352759,195.15,195.14,5.1252]
[1739346646446,0.03352759,195.15,195.12,0.03262261]
[1739346646651,0.03352759,195.15,195.13,5.1255]
[1739346648451,0.03352759,195.15,195.12,0.03262261]
[1739346648656,0.03352759,195.15,195.13,5.1255]
[1739346648848,0.03352759,195.15,195.12,0.03262261]
[1739346649158,0.03352759,195.15,195.14,5.1252]
[1739346651860,0.03352759,195.15,195.12,0.03262261]
[1739346652056,9.11200902,195.15,195.12,0.03262261]
[1739346652260,9.07848143,195.13,195.12,0.03262261]
[1739346659269,9.11200902,195.15,195.12,0.03262261]
[1739346660170,14.23710902,195.15,195.12,0.03262261]
[1739346662069,5.1254,195.14,195.12,0.03262261]
[1739346664878,14.23700902,195.15,195.12,0.03262261]
[1739346667081,9.11200902,195.15,195.12,0.03262261]
[1739346667379,5.1253,195.14,195.12,0.03262261]
[1739346667880,14.23700902,195.15,195.12,0.03262261]
[1739346668579,5.1252,195.14,195.12,0.03262261]
[1739346671782,14.23700902,195.15,195.12,0.03262261]
[1739346674381,0.03352759,195.15,195.12,0.03262261]
[1739346675287,0.03352759,195.15,195.13,5.1255]
[1739346682191,0.03352759,195.15,195.12,5.15842261]
[1739346684495,0.03352759,195.15,195.13,5.1255]
[1739346685097,0.03352759,195.15,195.12,5.15832261]
[1739346687496,0.03352759,195.15,195.13,5.1255]
[1739346698603,0.03352759,195.15,195.14,5.1252]
[1739346699199,0.03352759,195.15,195.12,0.03262261]
[1739346699403,0.03352759,195.15,195.12,5.15812261]
[1739346705006,0.03352759,195.15,195.14,5.1252]
[1739346705398,23.74013,195.17,195.12,0.03262261]
[1739346705399,23.74013,195.17,195.13,9.07848143]
[1739346705601,23.74013,195.17,195.16,14.20318143]
[1739346707410,23.74013,195.17,195.16,5.1247]
[1739346708111,23.74013,195.17,195.15,5.125]
[1739346709811,23.74013,195.17,195.16,5.1247]
[1739346717512,32.81861143,195.17,195.12,0.03262261]
[1739346718616,37.94331143,195.17,195.13,5.1253]
[1739346718819,32.81861143,195.17,195.13,5.1253]
[1739346719815,32.81861143,195.17,195.14,5.1251]
[1739346720311,23.74013,195.17,195.14,9.07848143]
[1739346721510,23.74013,195.17,195.16,5.1247]
[1739346728322,23.74013,195.17,195.16,14.20318143]
[1739346728811,23.74013,195.17,195.16,5.1247]
[1739346736126,6.90623,195.17,195.16,14.20318143]
[1739346736728,0.03397772,195.18,195.17,5.1244]
[1739346736729,7.72e-06,195.18,195.17,5.1244]
[1739346750337,7.72e-06,195.18,195.14,9.07848143]
[1739346750540,9.07848143,195.17,195.12,0.03262261]
[1739346750747,9.07848143,195.13,195.12,0.03262261]
[1739346752551,9.07848143,195.13,195.09,7.03913636]
[1739346752753,9.07848143,195.11,195.09,7.03913636]
[1739346753950,9.07848143,195.11,195.08,0.03616974]
[1739346755057,0.03356002,195.12,195.08,0.03616974]
[1739346756757,0.03356002,195.12,195.09,5.1265]
[1739346766653,5.15936002,195.12,195.08,14.24145117]
[1739346772258,9.07848143,195.11,195.08,0.03616974]
[1739346772464,9.07848143,195.09,195.02,9.07848143]
[1739346773668,0.03233064,195.07,195.04,0.0357137]
[1739346775863,0.03233064,195.07,195.04,5.1636137]
[1739346778566,0.03233064,195.07,195.04,14.24209513]
[1739346780270,0.03233064,195.07,195.04,9.11419513]
[1739346780469,5.15943064,195.07,195.04,9.11419513]
[1739346780686,0.03233064,195.07,195.04,9.11419513]
[1739346781369,0.03233064,195.07,195.04,14.24189513]
[1739346781869,0.03233064,195.07,195.04,9.11419513]
[1739346782069,0.03233064,195.07,195.05,5.1275]
[1739346783177,0.03233064,195.07,195.06,14.20578143]
[1739346784272,5.1249,195.16,195.1,5.1262]
[1739346784470,5.1249,195.16,195.12,9.07848143]
[1739346784875,5.125,195.15,195.1,9.07848143]
[1739346785072,9.07848143,195.15,195.1,9.07848143]
[1739346785472,0.03441538,195.14,195.11,0.03718256]
[1739346785873,5.15971538,195.14,195.11,0.03718256]
[1739346786367,0.03441538,195.14,195.11,0.03718256]
[1739346786571,0.03441538,195.14,195.12,9.07848143]
[1739346788779,0.03441538,195.14,195.13,5.1255]
[1739346789168,0.03441538,195.14,195.12,9.07848143]
[1739346789577,0.03441538,195.14,195.12,14.20418143]
[1739346790880,0.03441538,195.14,195.12,9.07848143]
[1739346791179,0.03441538,195.14,195.11,0.03718256]
[1739346791884,0.03441538,195.14,195.12,5.1257]
[1739346793384,0.03441538,195.14,195.11,0.03718256]
[1739346794478,5.15961538,195.14,195.11,0.03718256]
[1739346795684,0.03441538,195.14,195.11,0.03718256]
[1739346795979,0.03441538,195.14,195.11,5.16308256]
[1739346796282,0.03441538,195.14,195.12,5.1258]
[1739346797382,0.03441538,195.14,195.11,0.03718256]
[1739346797582,0.03441538,195.14,195.11,5.16318256]
[1739346799085,0.03441538,195.14,195.13,5.1255]
[1739346803377,1.538e-05,195.14,195.13,5.1255]
[1739346803788,1.538e-05,195.14,195.13,6.6839]
[1739346804885,1.538e-05,195.14,195.13,5.1255]
[1739346807097,1.538e-05,195.14,195.11,5.16298256]
[1739346809789,1.538e-05,195.14,195.11,0.03718256]
[1739346810189,9.07848143,195.13,195.11,0.03718256]
[1739346811792,14.20398143,195.13,195.11,0.03718256]
[1739346812199,9.07848143,195.13,195.11,0.03718256]
[1739346813301,14.20398143,195.13,195.11,0.03718256]
[1739346817203,9.07848143,195.13,195.11,0.03718256]
[1739346817405,5.1258,195.12,195.11,0.03718256]
[1739346817602,9.07848143,195.13,195.04,61.68019846]
[1739346817802,9.07848143,195.1,195.04,61.68019846]
[1739346818303,14.20488143,195.1,195.05,5.1274]
[1739346818705,0.03226809,195.09,195.06,0.03459712]
[1739346822717,5.15886809,195.09,195.06,0.03459712]
[1739346824513,0.03226809,195.09,195.06,0.03459712]
[1739346824814,5.1268,195.08,195.06,0.03459712]
[1739346828017,5.1271,195.07,195.06,0.03459712]
[1739346829713,5.1277,195.05,195.0,9.07848143]
[1739346830018,14.20618143,195.05,195.01,5.1284]
[1739346831009,14.2442739,195.05,195.01,5.16353665]
[1739346831714,9.1165739,195.05,195.01,0.03513665]
[1739346831918,5.1279,195.04,195.01,0.03513665]
[1739346833014,5.1284,195.02,195.01,0.03513665]
[1739346833519,14.20668143,195.03,195.01,0.03513665]
[1739346835623,9.07848143,195.03,195.01,0.03513665]
[1739346835824,5.1284,195.02,195.01,0.03513665]
[1739346836123,9.07848143,195.03,194.94,55.72919671]
[1739346836422,9.07848143,194.99,194.94,55.72919671]
[1739346836815,9.07848143,194.99,194.95,5.1302]
[1739346837221,9.11524828,194.99,194.94,55.72919671]
[1739346837623,0.03676685,194.99,194.96,5.1297]
[1739346838021,0.03676685,194.99,194.94,55.72919671]
[1739346838417,0.03676685,194.99,194.98,5.1294]
[1739346838717,0.03676685,194.99,194.98,14.20788143]
[1739346839818,6.685e-05,194.99,194.98,14.20788143]
[1739346840318,9.07848143,195.09,195.06,5.1273]
[1739346840523,9.07848143,195.11,195.06,5.1273]
[1739346840719,9.07848143,195.11,195.04,9.07848143]
[1739346841220,9.07848143,195.13,195.08,5.1268]
[1739346841424,9.07848143,195.13,195.06,9.07848143]
[1739346841724,0.03828924,195.12,195.09,0.03736797]
[1739346843124,9.07848143,195.1,195.09,0.03736797]
[1739346843325,9.07848143,195.1,194.97,46.6428386]
[1739346843326,9.07848143,195.1,194.98,9.07848143]
[1739346843522,9.07848143,195.04,194.98,9.07848143]
[1739346843723,9.07848143,195.02,194.97,46.6428386]
[1739346843918,9.07848143,195.02,194.98,5.1294]
[1739346844330,9.11493675,195.02,194.98,5.1294]
[1739346846929,9.11493675,195.02,194.99,5.1292]
[1739346850126,9.11493675,195.02,195.0,5.1289]
[1739346851433,9.11493675,195.02,194.96,10.56348143]
[1739346851627,0.03645532,195.02,194.96,10.56348143]
[1739346852532,0.03645532,195.02,194.97,5.1295]
[1739346852832,0.03645532,195.02,194.96,10.56348143]
[1739346853532,0.03645532,195.02,194.99,5.1289]
[1739346855633,0.03645532,195.02,195.0,5.1289]
[1739346858437,0.03645532,195.02,195.01,5.1287]
[1739346862345,0.03645532,195.02,194.98,9.07848143]
[1739346862547,0.03645532,195.02,195.0,5.1289]
[1739346864646,0.03645532,195.02,195.01,5.1287]
[1739346892674,0.03645532,195.02,194.98,9.07848143]
[1739346892868,0.03645532,195.02,195.0,5.1289]
[1739346893367,0.03645532,195.02,195.01,5.1287]
[1739346894675,0.03645532,195.02,195.0,5.1289]
[1739346895575,0.03645532,195.02,194.98,9.07848143]
[1739346895775,0.03645532,195.02,195.01,5.1287]
[1739346903981,0.03645532,195.02,195.0,5.1289]
[1739346905388,0.03645532,195.02,194.98,9.07848143]
[1739346905582,0.03645532,195.02,195.01,5.1287]
[1739346915791,0.03645532,195.02,194.98,9.07848143]
[1739346915992,0.03645532,195.02,194.99,5.1289]
[1739346919193,0.03645532,195.02,194.98,9.07848143]
[1739346919498,0.03645532,195.02,195.0,9.07848143]
[1739346920493,0.03645532,195.02,194.96,10.56348143]
[1739346920699,0.03645532,195.02,194.96,9.07848143]
[1739346920898,9.11493675,195.02,194.96,9.07848143]
[1739346921099,14.24353675,195.02,194.96,14.20818143]
[1739346921601,14.24353675,195.02,194.96,9.07848143]
[1739346921792,14.24353675,195.02,194.97,5.1294]
[1739346922497,14.24353675,195.02,194.98,5.1294]
[1739346922897,9.11493675,195.02,194.98,5.1294]
[1739346923097,0.03645532,195.02,194.99,5.1291]
[1739346923302,0.03645532,195.02,195.0,9.07848143]
[1739346924903,0.03645532,195.02,194.98,9.07848143]
[1739346925809,0.03645532,195.02,195.0,5.1289]
[1739346927012,0.03645532,195.02,194.98,9.07848143]
[1739346927212,0.03645532,195.02,195.01,5.1287]
[1739346931311,20.34928162,195.11,195.0,9.07848143]
[1739346931618,9.07848143,195.09,195.01,9.07848143]
[1739346932513,0.03885054,195.07,195.03,0.03375613]
[1739346932818,0.03885054,195.07,195.03,5.16185613]